fUST/lending_fUST_20241213
["ID","MTS","AMOUNT","RATE_DAILY","PERIOD"]
[345167338,1734073877650,-500.0,0.00028493,7]
[345167340,1734073877659,-3598.79,0.00028493,7]
[345167342,1734073877669,-1161.27,0.00028493,7]
[345167345,1734073877678,-500.0,0.00028493,7]
[345167346,1734073877689,-500.0,0.00028493,7]
[345167348,1734073877698,-761.46,0.00028493,7]
[345167350,1734073877707,-2849.29,0.00028493,7]
[345167353,1734073877717,-500.0,0.00028493,7]
[345167355,1734073877727,-500.0,0.00028493,7]
[345167357,1734073877738,-500.0,0.00028493,7]
[345167359,1734073877747,-1360.35,0.00028493,7]
[345167361,1734073877757,-830.13,0.00028493,7]
[345167363,1734073877766,-500.0,0.00028493,7]
[345167365,1734073877776,-552.29,0.00028493,7]
[345167367,1734073877785,-1830.05,0.00028493,7]
[345167369,1734073877795,-500.0,0.00028493,7]
[345167371,1734073877805,-500.0,0.00028493,7]
[345167373,1734073877814,-2352.18,0.00028493,7]
[345167375,1734073877824,-665.66,0.00028493,2]
[345167377,1734073877833,-10350.06,0.00028493,7]
[345167379,1734073877842,-536.27199944,0.00028493,7]
[345167381,1734073877853,-500.0,0.00028493,7]
[345167383,1734073877863,-1088.5,0.00028493,7]
[345167385,1734073877872,-884.8,0.00028493,7]
[345167387,1734073877884,-1721.54,0.00028493,7]
[345167389,1734073877894,-500.0,0.00028493,7]
[345167391,1734073877903,-2055.1,0.00028493,7]
[345167393,1734073877913,-524.23,0.00028493,7]
[345167395,1734073877922,-500.0,0.00028493,7]
[345167397,1734073877932,-500.0,0.00028493,7]
[345167398,1734073877942,-500.0,0.00028493,7]
[345167400,1734073877951,-2000.0,0.00028493,7]
[345167403,1734073877961,-1393.08,0.00028493,7]
[345167404,1734073877971,-759.46,0.00028493,7]
[345167407,1734073877980,-1231.64,0.00028493,7]
[345167409,1734073877990,-1043.14,0.00028493,7]
[345167410,1734073878000,-500.0,0.00028493,7]
[345167413,1734073878010,-500.0,0.00028493,7]
[345167414,1734073878020,-500.0,0.00028493,7]
[345167416,1734073878029,-500.0,0.00028493,7]
[345167419,1734073878039,-500.0,0.00028493,7]
[345167420,1734073878048,-757.36,0.00028493,7]
[345167423,1734073878057,-597.21,0.00028493,7]
[345167425,1734073878071,-855.14,0.00028493,7]
[345167427,1734073878080,-774.23,0.00028493,7]
[345167429,1734073878090,-500.0,0.00028493,7]
[345167431,1734073878100,-500.0,0.00028493,7]
[345167433,1734073878109,-734.46,0.00028493,7]
[345167435,1734073878119,-544.56,0.00028493,7]
[345167437,1734073878128,-538.29752233,0.00028493,7]
[345167439,1734073878142,-500.0,0.00028493,7]
[345167441,1734073878151,-500.0,0.00028493,7]
[345167443,1734073878160,-500.0,0.00028493,7]
[345167445,1734073878170,-500.0,0.00028493,7]
[345167447,1734073878179,-14673.87,0.00028493,7]
[345167449,1734073878188,-874.46,0.00028493,7]
[345167451,1734073878198,-571.74,0.00028493,7]
[345167453,1734073878207,-500.0,0.00028493,7]
[345167455,1734073878216,-500.0,0.00028493,7]
[345167457,1734073878226,-500.0,0.00028493,7]
[345167459,1734073878235,-500.0,0.00028493,7]
[345167461,1734073878245,-1325.51,0.00028493,7]
[345167463,1734073878254,-500.0,0.00028493,7]
[345167465,1734073878264,-500.0,0.00028493,7]
[345167467,1734073878275,-500.0,0.00028493,7]
[345167469,1734073878288,-617.0,0.00028493,7]
[345167471,1734073878300,-500.0,0.00028493,7]
[345167473,1734073878313,-500.0,0.00028493,7]
[345167475,1734073878322,-500.0,0.00028493,7]
[345167477,1734073878332,-500.0,0.00028493,7]
[345167479,1734073878341,-500.0,0.00028493,7]
[345167481,1734073878351,-500.0,0.00028493,7]
[345167483,1734073878362,-500.0,0.00028493,7]
[345167485,1734073878373,-1057.12,0.00028493,7]
[345167487,1734073878389,-500.0,0.00028493,7]
[345167489,1734073878399,-2374.65,0.00028493,7]
[345167491,1734073878414,-500.0,0.00028493,7]
[345167493,1734073878424,-609.04,0.00028493,7]
[345167495,1734073878434,-500.0,0.00028493,7]
[345167497,1734073878443,-650.06,0.00028493,7]
[345167499,1734073878457,-500.0,0.00028493,7]
[345167501,1734073878467,-500.0,0.00028493,7]
[345167504,1734073878477,-1403.98,0.00028493,7]
[345167506,1734073878487,-500.0,0.00028493,7]
[345167508,1734073878496,-585.25,0.00028493,7]
[345167509,1734073878505,-1011.92,0.00028493,7]
[345167511,1734073878515,-649.55,0.00028493,7]
[345167514,1734073878524,-500.0,0.00028493,2]
[345167515,1734073878534,-500.0,0.00028493,7]
[345167518,1734073878543,-500.0,0.00028493,7]
[345167520,1734073878553,-2099.54,0.00028493,7]
[345167522,1734073878563,-500.0,0.00028493,2]
[345167524,1734073878572,-750.37,0.00028493,7]
[345167526,1734073878582,-1649.58,0.00028493,7]
[345167528,1734073878592,-500.0,0.00028493,7]
[345167530,1734073878602,-1113.45,0.00028493,7]
[345167532,1734073878612,-500.0,0.00028493,7]
[345167534,1734073878621,-1520.43,0.00028493,7]
[345167536,1734073878635,-802.05,0.00028493,7]
[345167538,1734073878645,-18649.54,0.00028493,7]
[345167540,1734073878654,-500.0,0.00028493,7]
[345167542,1734073878664,-500.0,0.00028493,7]
[345167544,1734073878674,-1754.12,0.00028493,7]
[345167546,1734073878684,-500.0,0.00028493,7]
[345167548,1734073878693,-2347.12,0.00028493,7]
[345167550,1734073878703,-569.82,0.00028493,7]
[345167552,1734073878713,-657.49,0.00028493,7]
[345167554,1734073878724,-500.0,0.00028493,7]
[345167556,1734073878734,-500.0,0.00028493,7]
[345167558,1734073878743,-500.0,0.00028493,7]
[345167560,1734073878752,-1837.67,0.00028493,7]
[345167562,1734073878762,-500.0,0.00028493,7]
[345167564,1734073878771,-500.0,0.00028493,7]
[345167566,1734073878781,-1076.97,0.00028493,7]
[345167568,1734073878790,-1669.83,0.00028493,7]
[345167570,1734073878800,-500.0,0.00028493,7]
[345167572,1734073878810,-500.0,0.00028493,7]
[345167574,1734073878820,-805.2,0.00028493,7]
[345167576,1734073878829,-500.0,0.00028493,7]
[345167578,1734073878839,-500.0,0.00028493,7]
[345167580,1734073878850,-1014.65,0.00028493,7]
[345167582,1734073878861,-5241.44,0.00028493,7]
[345167584,1734073878870,-500.0,0.00028493,7]
[345167587,1734073878880,-637.87,0.00028493,7]
[345167589,1734073878893,-7567.01,0.00028493,7]
[345167591,1734073878902,-3845.18,0.00028493,7]
[345167593,1734073878912,-613.66,0.00028493,7]
[345167595,1734073878921,-556.39,0.00028493,7]
[345167597,1734073878930,-500.0,0.00028493,7]
[345167599,1734073878940,-500.0,0.00028493,7]
[345167601,1734073878949,-500.0,0.00028493,7]
[345167602,1734073878958,-3110.15,0.00028493,7]
[345167604,1734073878968,-500.0,0.00028493,7]
[345167606,1734073878977,-500.0,0.00028493,7]
[345167607,1734073878987,-1541.34,0.00028493,7]
[345167609,1734073878997,-500.0,0.00028493,7]
[345167611,1734073879007,-389.92551221,0.00028493,7]
[345167613,1734073879016,-500.0,0.00028493,7]
[345167614,1734073879026,-621.56444966,0.00028493,7]
[345167616,1734073879036,-513.11,0.00028493,7]
[345167618,1734073879045,-1760.13,0.00028493,7]
[345167620,1734073879055,-500.0,0.00028493,7]
[345167621,1734073879064,-2152.36,0.00028493,7]
[345167623,1734073879073,-844.94,0.00028493,7]
[345167625,1734073879083,-500.0,0.00028493,7]
[345167626,1734073879092,-500.0,0.00028493,7]
[345167628,1734073879101,-500.0,0.00028493,7]
[345167630,1734073879110,-500.0,0.00028493,7]
[345167632,1734073879119,-500.0,0.00028493,7]
[345167633,1734073879128,-3513.32,0.00028493,7]
[345167635,1734073879141,-500.0,0.00028493,7]
[345167637,1734073879152,-1214.56,0.00028493,7]
[345167639,1734073879162,-794.79,0.00028493,7]
[345167640,1734073879171,-500.0,0.00028493,7]
[345167642,1734073879184,-565.88,0.00028493,7]
[345167644,1734073879194,-242.16564026,0.00028493,7]
[345167646,1734073879203,-777.95,0.00028493,7]
[345167648,1734073879213,-823.48,0.00028493,7]
[345167649,1734073879222,-2026.351662,0.000285,20]
[345167651,1734073879231,-2000.0,0.000285,4]
[345167653,1734073879241,-6569.999999,0.000285,2]
[345167655,1734073879251,-338836.2484583,0.000285,2]
[345167656,1734073879260,-4381464.42714314,0.000285,2]
[345167658,1734073879269,-245895.76915387,0.000285,2]
[345167660,1734073879279,-2292.18907531,0.000285,2]
[345167662,1734073879289,-663594.61593789,0.000285,2]
[345167663,1734073879300,-126966.66500761,0.000285,2]
[345167665,1734073879310,-255.65665459,0.00028576,2]
[345167667,1734073879319,-162.4,0.000286,2]
[345167669,1734073879328,-378.32008074,0.00028639,7]
[345167671,1734073879337,-462.0,0.00028666,120]
[345167673,1734073879346,-264.93,0.000287,2]
[345167674,1734073879359,-16184.32,0.000287,2]
[345167676,1734073879369,-150.0,0.00028721,2]
[345167678,1734073879378,-255.65665459,0.00028758,2]
[345167680,1734073879390,-500.0,0.00028767,7]
[345167682,1734073879400,-359.2304526,0.00028767,7]
[345167683,1734073879409,-717.54,0.00028767,7]
[345167685,1734073879420,-500.0,0.00028767,7]
[345167687,1734073879430,-500.0,0.00028767,7]
[345167689,1734073879439,-526.38,0.00028767,7]
[345167690,1734073879449,-500.0,0.00028767,7]
[345167692,1734073879462,-500.0,0.00028767,7]
[345167694,1734073879471,-1060.98,0.00028767,7]
[345167696,1734073879480,-500.0,0.00028767,7]
[345167698,1734073879490,-500.0,0.00028767,7]
[345167700,1734073879501,-500.0,0.00028767,7]
[345167701,1734073879510,-504.17,0.00028767,7]
[345167703,1734073879520,-517.40915958,0.00028767,7]
[345167705,1734073879530,-506.77,0.00028767,7]
[345167707,1734073879539,-500.0,0.00028767,7]
[345167709,1734073879548,-613.11229703,0.00028767,7]
[345167710,1734073879558,-500.0,0.00028767,7]
[345167712,1734073879567,-500.0,0.00028767,7]
[345167714,1734073879577,-500.0,0.00028767,7]
[345167716,1734073879586,-710.23,0.00028767,7]
[345167729,1734073879738,-500.0,0.00028767,7]
[345167731,1734073879749,-500.0,0.00028767,7]
[345167733,1734073879758,-712.31,0.00028767,7]
[345167735,1734073879768,-540.72,0.00028767,7]
[345167737,1734073879777,-779.87,0.00028767,7]
[345167738,1734073879787,-500.0,0.00028767,7]
[345167740,1734073879797,-234.89301319,0.00028767,7]
[345167742,1734073879807,-500.0,0.00028767,7]
[345167744,1734073879816,-500.0,0.00028767,7]
[345167746,1734073879826,-500.0,0.00028767,7]
[345167748,1734073879835,-500.0,0.00028767,7]
[345167749,1734073879844,-550.49,0.00028767,7]
[345167751,1734073879854,-875.69,0.00028767,7]
[345167753,1734073879863,-506.05826147,0.00028767,7]
[345167755,1734073879872,-500.0,0.00028767,7]
[345167757,1734073879883,-351.45844479,0.00028767,7]
[345167758,1734073879893,-240.08360709,0.00028767,7]
[345167760,1734073879903,-500.0,0.00028767,7]
[345167762,1734073879913,-718.22,0.00028767,7]
[345167764,1734073879922,-500.0,0.00028767,7]
[345167766,1734073879932,-1639.41,0.00028767,7]
[345167768,1734073879941,-500.0,0.00028767,7]
[345167769,1734073879951,-500.0,0.00028767,7]
[345167771,1734073879960,-1045.63,0.00028767,7]
[345167773,1734073879970,-926.35,0.00028767,7]
[345167775,1734073879979,-500.0,0.00028767,7]
[345167777,1734073879989,-500.0,0.00028767,7]
[345167779,1734073879998,-515.11518594,0.00028767,7]
[345167781,1734073880008,-1759.92,0.00028767,7]
[345167782,1734073880017,-500.0,0.00028767,7]
[345167784,1734073880026,-500.0,0.00028767,7]
[345167786,1734073880035,-500.0,0.00028767,7]
[345167788,1734073880045,-500.0,0.00028767,7]
[345167790,1734073880054,-541.72,0.00028767,7]
[345167791,1734073880064,-500.0,0.00028767,7]
[345167793,1734073880073,-500.0,0.00028767,7]
[345167795,1734073880082,-512.94,0.00028767,7]
[345167796,1734073880091,-609.25,0.00028767,7]
[345167798,1734073880101,-866.24,0.00028767,7]
[345167800,1734073880111,-583.41,0.00028767,7]
[345167802,1734073880120,-508.43841695,0.00028767,7]
[345167804,1734073880129,-598.9,0.00028767,7]
[345167805,1734073880141,-1184.65,0.00028767,7]
[345167807,1734073880150,-534.17,0.00028767,7]
[345167809,1734073880159,-967.68,0.00028767,7]
[345167811,1734073880169,-500.0,0.00028767,7]
[345167813,1734073880178,-500.0,0.00028767,7]
[345167814,1734073880187,-500.0,0.00028767,7]
[345167816,1734073880197,-500.0,0.00028767,7]
[345167818,1734073880207,-1372.64,0.00028767,7]
[345167820,1734073880217,-291.57200099,0.00028767,7]
[345167822,1734073880226,-500.0,0.00028767,7]
[345167824,1734073880236,-500.0,0.00028767,7]
[345167825,1734073880246,-1188.86,0.00028767,7]
[345167827,1734073880255,-500.0,0.00028767,7]
[345167829,1734073880265,-500.0,0.00028767,7]
[345167831,1734073880275,-983.86,0.00028767,7]
[345167833,1734073880285,-1029.45,0.00028767,7]
[345167834,1734073880294,-500.0,0.00028767,7]
[345167836,1734073880303,-500.0,0.00028767,7]
[345167838,1734073880312,-500.0,0.00028767,7]
[345167840,1734073880321,-170.40205543,0.00028767,7]
[345167842,1734073880331,-500.0,0.00028767,7]
[345167843,1734073880341,-500.0,0.00028767,7]
[345167845,1734073880351,-500.0,0.00028767,7]
[345167847,1734073880361,-500.0,0.00028767,7]
[345167849,1734073880370,-625.88,0.00028767,7]
[345167851,1734073880379,-500.0,0.00028767,7]
[345167852,1734073880390,-500.0,0.00028767,7]
[345167854,1734073880399,-500.0,0.00028767,7]
[345167856,1734073880410,-539.73,0.00028767,7]
[345167858,1734073880419,-500.0,0.00028767,7]
[345167860,1734073880428,-500.0,0.00028767,7]
[345167861,1734073880438,-500.0,0.00028767,7]
[345167863,1734073880447,-500.0,0.00028767,7]
[345167865,1734073880460,-500.0,0.00028767,7]
[345167867,1734073880469,-1122.36,0.00028767,7]
[345167869,1734073880479,-500.0,0.00028767,7]
[345167871,1734073880488,-500.0,0.00028767,7]
[345167872,1734073880498,-754.87,0.00028767,7]
[345167874,1734073880508,-203.36650287,0.00028767,7]
[345167876,1734073880517,-500.0,0.00028767,7]
[345167878,1734073880527,-500.0,0.00028767,7]
[345167880,1734073880536,-500.0,0.00028767,7]
[345167882,1734073880545,-987.16,0.00028767,7]
[345167883,1734073880555,-500.0,0.00028767,7]
[345167885,1734073880564,-500.0,0.00028767,7]
[345167887,1734073880574,-500.0,0.00028767,7]
[345167889,1734073880583,-500.0,0.00028767,7]
[345167891,1734073880593,-500.0,0.00028767,2]
[345167893,1734073880602,-500.0,0.00028767,7]
[345167894,1734073880611,-500.0,0.00028767,7]
[345167896,1734073880620,-764.89,0.00028767,7]
[345167898,1734073880629,-500.0,0.00028767,7]
[345167900,1734073880640,-500.0,0.00028767,7]
[345167902,1734073880649,-500.0,0.00028767,7]
[345167904,1734073880659,-500.0,0.00028767,7]
[345167905,1734073880668,-500.0,0.00028767,7]
[345167907,1734073880678,-748.21,0.00028767,7]
[345167909,1734073880687,-891.63,0.00028767,7]
[345167911,1734073880697,-500.0,0.00028767,7]
[345167913,1734073880707,-1012.58,0.00028767,7]
[345167915,1734073880717,-500.0,0.00028767,7]
[345167916,1734073880726,-500.0,0.00028767,7]
[345167918,1734073880735,-500.0,0.00028767,7]
[345167920,1734073880745,-1562.4,0.00028767,7]
[345167922,1734073880754,-500.0,0.00028767,7]
[345167924,1734073880764,-500.0,0.00028767,7]
[345167926,1734073880773,-500.0,0.00028767,7]
[345167927,1734073880782,-500.0,0.00028767,7]
[345167929,1734073880791,-844.87,0.00028767,7]
[345167931,1734073880801,-500.0,0.00028767,7]
[345167933,1734073880810,-861.33,0.00028767,7]
[345167935,1734073880821,-1079.28,0.00028767,7]
[345167937,1734073880830,-500.0,0.00028767,7]
[345167938,1734073880840,-500.0,0.00028767,7]
[345167940,1734073880850,-500.0,0.00028767,7]
[345167942,1734073880859,-500.0,0.00028767,7]
[345167943,1734073880869,-642.13,0.00028767,7]
[345167945,1734073880878,-580.55,0.00028767,7]
[345167947,1734073880889,-1754.92,0.00028767,7]
[345167949,1734073880899,-500.0,0.00028767,7]
[345167951,1734073880909,-500.0,0.00028767,7]
[345167953,1734073880918,-500.0,0.00028767,7]
[345167955,1734073880928,-500.0,0.00028767,7]
[345167956,1734073880937,-500.0,0.00028767,7]
[345167958,1734073880947,-575.38,0.00028767,7]
[345167960,1734073880956,-500.0,0.00028767,7]
[345167962,1734073880965,-1597.88,0.00028767,7]
[345167964,1734073880975,-545.17,0.00028767,7]
[345167966,1734073880984,-1408.4,0.00028767,7]
[345167967,1734073880993,-1493.83,0.00028767,7]
[345167969,1734073881003,-612.01,0.00028767,7]
[345167971,1734073881012,-710.98,0.00028767,7]
[345167973,1734073881021,-1455.91,0.00028767,7]
[345167975,1734073881031,-500.0,0.00028767,7]
[345167977,1734073881040,-500.0,0.00028767,7]
[345167979,1734073881050,-500.0,0.00028767,7]
[345167980,1734073881059,-500.0,0.00028767,7]
[345167982,1734073881069,-500.0,0.00028767,7]
[345167984,1734073881079,-1031.95,0.00028767,7]
[345167986,1734073881088,-500.0,0.00028767,7]
[345167988,1734073881097,-500.0,0.00028767,7]
[345167990,1734073881106,-500.0,0.00028767,7]
[345167992,1734073881115,-500.0,0.00028767,7]
[345167993,1734073881125,-930.78,0.00028767,7]
[345167995,1734073881134,-500.0,0.00028767,7]
[345167997,1734073881144,-500.0,0.00028767,7]
[345167999,1734073881153,-500.0,0.00028767,7]
[345168001,1734073881163,-500.0,0.00028767,7]
[345168003,1734073881172,-500.0,0.00028767,7]
[345168004,1734073881182,-750.66,0.00028767,7]
[345168006,1734073881191,-500.0,0.00028767,7]
[345168008,1734073881201,-742.52,0.00028767,7]
[345168010,1734073881210,-581.53,0.00028767,7]
[345168012,1734073881219,-500.0,0.00028767,7]
[345168013,1734073881228,-500.0,0.00028767,7]
[345168015,1734073881238,-500.0,0.00028767,7]
[345168017,1734073881248,-685.0,0.00028767,7]
[345168019,1734073881257,-561.92,0.00028767,7]
[345168021,1734073881273,-500.69,0.00028767,7]
[345168023,1734073881283,-611.51,0.00028767,7]
[345168025,1734073881292,-560.45,0.00028767,7]
[345168027,1734073881302,-500.0,0.00028767,7]
[345168029,1734073881311,-500.0,0.00028767,7]
[345168031,1734073881320,-500.0,0.00028767,7]
[345168033,1734073881329,-500.0,0.00028767,7]
[345168034,1734073881339,-500.0,0.00028767,7]
[345168036,1734073881348,-586.35,0.00028767,7]
[345168038,1734073881358,-671.76,0.00028767,7]
[345168040,1734073881367,-821.87,0.00028767,7]
[345168042,1734073881376,-763.18,0.00028767,7]
[345168044,1734073881388,-500.0,0.00028767,7]
[345168046,1734073881397,-194.95861512,0.00028767,7]
[345168047,1734073881407,-500.0,0.00028767,7]
[345168049,1734073881416,-500.0,0.00028767,9]
[345168051,1734073881425,-500.0,0.00028767,7]
[345168053,1734073881435,-500.0,0.00028767,7]
[345168055,1734073881444,-500.0,0.00028767,7]
[345168057,1734073881459,-500.0,0.00028767,7]
[345168058,1734073881469,-500.0,0.00028767,7]
[345168060,1734073881478,-1939.32,0.00028767,7]
[345168062,1734073881487,-500.0,0.00028767,7]
[345168064,1734073881498,-500.0,0.00028767,7]
[345168066,1734073881508,-791.43,0.00028767,7]
[345168067,1734073881518,-500.0,0.00028767,7]
[345168069,1734073881529,-854.56,0.00028767,7]
[345168071,1734073881540,-613.3,0.00028767,7]
[345168073,1734073881549,-500.0,0.00028767,7]
[345168075,1734073881558,-500.0,0.00028767,7]
[345168077,1734073881568,-500.0,0.00028767,7]
[345168079,1734073881577,-500.0,0.00028767,7]
[345168080,1734073881587,-781.05,0.00028767,7]
[345168082,1734073881596,-500.0,0.00028767,7]
[345168084,1734073881605,-500.0,0.00028767,7]
[345168086,1734073881615,-380.94311597,0.00028767,7]
[345168088,1734073881624,-500.0,0.00028767,7]
[345168089,1734073881634,-1549.05,0.00028767,7]
[345168091,1734073881643,-500.0,0.00028767,7]
[345168093,1734073881652,-151.71767755,0.00028767,7]
[345168095,1734073881662,-500.0,0.00028767,7]
[345168097,1734073881671,-500.0,0.00028767,7]
[345168099,1734073881681,-1117.3,0.00028767,7]
[345168100,1734073881690,-500.0,0.00028767,7]
[345168102,1734073881700,-500.0,0.00028767,7]
[345168104,1734073881709,-1000.0,0.00028767,2]
[345168106,1734073881719,-500.0,0.00028767,7]
[345168108,1734073881728,-500.0,0.00028767,7]
[345168110,1734073881737,-500.0,0.00028767,7]
[345168112,1734073881747,-918.3,0.00028767,7]
[345168113,1734073881756,-1626.18,0.00028767,7]
[345168125,1734073881868,-500.0,0.00028767,7]
[345168127,1734073881890,-500.0,0.00028767,7]
[345168129,1734073881900,-513.43742654,0.00028767,7]
[345168131,1734073881910,-500.0,0.00028767,7]
[345168133,1734073881919,-500.0,0.00028767,7]
[345168135,1734073881928,-500.0,0.00028767,7]
[345168136,1734073881937,-500.0,0.00028767,7]
[345168138,1734073881947,-500.0,0.00028767,7]
[345168140,1734073881956,-500.0,0.00028767,7]
[345168142,1734073881966,-661.48,0.00028767,7]
[345168144,1734073881975,-168.0,0.00028767,7]
[345168145,1734073881984,-2467.25,0.00028767,7]
[345168147,1734073881994,-854.23,0.00028767,7]
[345168149,1734073882003,-576.59,0.00028767,7]
[345168151,1734073882012,-500.0,0.00028767,7]
[345168153,1734073882022,-596.77,0.00028767,7]
[345168155,1734073882031,-200.0,0.00028767,7]
[345168156,1734073882040,-500.0,0.00028767,7]
[345168158,1734073882049,-500.0,0.00028767,7]
[345168160,1734073882058,-500.0,0.00028767,7]
[345168162,1734073882068,-500.0,0.00028767,7]
[345168164,1734073882077,-500.0,0.00028767,7]
[345168166,1734073882086,-504.74,0.00028767,7]
[345168167,1734073882096,-2075.55,0.00028767,7]
[345168169,1734073882105,-500.0,0.00028767,7]
[345168171,1734073882114,-2144.24,0.00028767,7]
[345168173,1734073882124,-500.0,0.00028767,7]
[345168175,1734073882135,-598.18,0.00028767,7]
[345168177,1734073882144,-504.29,0.00028767,7]
[345168178,1734073882153,-695.31,0.00028767,7]
[345168180,1734073882162,-500.0,0.00028767,7]
[345168182,1734073882172,-500.0,0.00028767,7]
[345168184,1734073882181,-500.0,0.00028767,7]
[345168186,1734073882190,-551.25,0.00028767,7]
[345168187,1734073882199,-1042.61,0.00028767,7]
[345168189,1734073882208,-500.0,0.00028767,7]
[345168191,1734073882218,-500.0,0.00028767,7]
[345168193,1734073882230,-500.0,0.00028767,7]
[345168195,1734073882243,-500.0,0.00028767,7]
[345168197,1734073882256,-500.0,0.00028767,7]
[345168198,1734073882265,-500.0,0.00028767,7]
[345168200,1734073882274,-1132.49,0.00028767,7]
[345168202,1734073882283,-500.0,0.00028767,7]
[345168204,1734073882293,-500.0,0.00028767,7]
[345168205,1734073882303,-500.0,0.00028767,7]
[345168207,1734073882312,-554.26,0.00028767,7]
[345168209,1734073882322,-848.29,0.00028767,7]
[345168211,1734073882331,-500.0,0.00028767,7]
[345168213,1734073882340,-742.65,0.00028767,7]
[345168214,1734073882349,-500.0,0.00028767,7]
[345168216,1734073882358,-793.69,0.00028767,7]
[345168218,1734073882368,-152.57002622,0.00028767,7]
[345168220,1734073882378,-500.0,0.00028767,7]
[345168222,1734073882396,-500.0,0.00028767,7]
[345168224,1734073882406,-596.19713317,0.00028767,7]
[345168225,1734073882416,-500.0,0.00028767,7]
[345168227,1734073882425,-500.0,0.00028767,7]
[345168229,1734073882435,-660.24,0.00028767,7]
[345168231,1734073882444,-959.74,0.00028767,7]
[345168233,1734073882457,-500.0,0.00028767,7]
[345168234,1734073882466,-628.73,0.00028767,7]
[345168235,1734073882475,-500.0,0.00028767,7]
[345168236,1734073882485,-500.0,0.00028767,7]
[345168237,1734073882494,-913.29,0.00028767,7]
[345168238,1734073882504,-769.48,0.00028767,7]
[345168239,1734073882513,-500.0,0.00028767,7]
[345168240,1734073882523,-500.0,0.00028767,7]
[345168241,1734073882532,-687.94,0.00028767,7]
[345168242,1734073882542,-500.0,0.00028767,7]
[345168243,1734073882551,-1226.78,0.00028767,7]
[345168244,1734073882561,-1239.0,0.00028767,7]
[345168245,1734073882571,-538.20801747,0.00028767,7]
[345168246,1734073882580,-500.0,0.00028767,7]
[345168247,1734073882590,-555.96,0.00028767,7]
[345168248,1734073882600,-500.0,0.00028767,7]
[345168249,1734073882610,-500.0,0.00028767,7]
[345168250,1734073882620,-934.39,0.00028767,7]
[345168251,1734073882629,-500.0,0.00028767,7]
[345168252,1734073882644,-757.27,0.00028767,7]
[345168253,1734073882654,-1702.35,0.00028767,7]
[345168254,1734073882664,-500.0,0.00028767,7]
[345168255,1734073882674,-500.0,0.00028767,7]
[345168256,1734073882684,-694.34,0.00028767,7]
[345168257,1734073882693,-737.45,0.00028767,7]
[345168258,1734073882703,-851.51,0.00028767,7]
[345168259,1734073882712,-2417.87,0.00028767,7]
[345168260,1734073882722,-991.68,0.00028767,7]
[345168261,1734073882732,-1353.92,0.00028767,7]
[345168262,1734073882742,-516.48,0.00028767,7]
[345168263,1734073882752,-2043.23,0.00028767,7]
[345168264,1734073882762,-500.0,0.00028767,7]
[345168265,1734073882772,-500.0,0.00028767,7]
[345168266,1734073882782,-500.0,0.00028767,7]